[Event "4th Memorial Warakomska-A 2020"]
[Site "Suwalki"]
[Date "2020.08.12"]
[Round "8.15"]
[White "Jurkiewicz, Krzysztof"]
[Black "Chojnowski, Marcin"]
[Result "1-0"]
[ECO "A57"]
[WhiteElo "2275"]
[BlackElo "2035"]
[Annotator "ChessBase"]
[PlyCount "123"]
[EventDate "2020.08.06"]
[EventType "swiss"]
[EventCountry "POL"]
[SourceTitle "playchess.com"]
[Source "ChessBase"]
[SourceQuality "1"]
[TimeControl "40/5400+30:1800+30"]

1. d4 {[%emt 0:00:00]} Nf6 {[%emt 0:00:00]} 2. c4 {[%emt 0:00:00]} c5 {[%emt 0:00:10]} 3. d5 {[%emt 0:00:00]} b5 {[%emt 0:00:03]} 4. Qc2 {[%emt 0:00:53]} bxc4 {[%emt 0:01:45]} 5. e4 {[%emt 0:00:13]} d6 {[%emt 0:00:12]} 6. Nc3 {[%emt 0:01:34]} g6 {[%emt 0:00:17]} 7. Bxc4 {[%emt 0:00:16]} Bg7 {[%emt 0:00:12]} 8. Nf3 {[%emt 0:01:28]} O-O {[%emt 0:00:21]} 9. O-O {[%emt 0:00:19]} Ba6 {[%emt 0:04:00]} 10. Qe2 {[%emt 0:06:59]} Bxc4 {[%emt 0:01:15]} 11. Qxc4 {[%emt 0:00:05]} Nbd7 {[%emt 0:01:25]} 12. Re1 {[%emt 0:05:40]} Nb6 {[%emt 0:02:40]} 13. Qd3 {[%emt 0:01:27]} Nfd7 {[%emt 0:08:56]} 14. Be3 {[%emt 0:09:59]} Qc8 {[%emt 0:06:03]} 15. a4 {[%emt 0:02:36]} a5 {[%emt 0:02:48]} 16. Qe2 {[%emt 0:04:46]} Qa6 {[%emt 0:02:24]} 17. Bg5 {[%emt 0:33:12]} Nf6 {[%emt 0:07:28]} 18. Nd2 {[%emt 0:03:54]} h6 {[%emt 0:07:35]} 19. Bf4 {[%emt 0:00:38]} Rfb8 {[%emt 0:01:51]} 20. h3 {[%emt 0:01:01]} Qxe2 {[%emt 0:04:13]} 21. Rxe2 {[%emt 0:00:11]} Nbd7 {[%emt 0:05:54]} 22. Ra2 {[%emt 0:04:58]} Rb4 {[%emt 0:03:32]} 23. g4 {[%emt 0:00:57]} Ne8 {[%emt 0:01:13]} 24. Be3 {[%emt 0:02:13]} Rab8 {[%emt 0:01:43]} 25. Nb5 {[%emt 0:00:33]} Ne5 {[%emt 0:06:36]} 26. b3 {[%emt 0:00:20]} Nd3 {[%emt 0:01:11]} 27. Rc2 {[%emt 0:00:12]} g5 {[%emt 0:02:36]} 28. Na7 {[%emt 0:00:49]} R4b7 {[%emt 0:02:09]} 29. Nc6 {[%emt 0:01:04]} Ra8 {[%emt 0:00:04]} 30. Nc4 {[%emt 0:01:24]} Rxb3 {[%emt 0:02:48]} 31. Nxe7+ {[%emt 0:02:23]} Kf8 {[%emt 0:01:00]} 32. Nf5 {[%emt 0:01:33]} Rb1+ {[%emt 0:03:02]} 33. Kg2 {[%emt 0:00:46]} Ra6 {[%emt 0:04:21]} 34. Kh2 {[%emt 0:03:14]} Kg8 {[%emt 0:05:25]} 35. Bd2 {[%emt 0:03:13]} Ra1 {[%emt 0:02:25]} 36. Nxg7 {[%emt 0:01:31]} Nxg7 {[%emt 0:00:15]} 37. Bxa5 {[%emt 0:01:23]} Rxa4 {[%emt 0:00:14]} 38. Bd8 {[%emt 0:03:01]} Ne8 {[%emt 0:02:26]} 39. Be7 {[%emt 0:03:44]} f6 {[%emt 0:00:34]} 40. Bd8 {[%emt 0:00:00]} Ra8 {[%emt 0:00:00]} 41. Nb6 {[%emt 0:03:05]} Ne5 {[%emt 0:04:21]} 42. Nxa4 {[%emt 0:01:18]} Nf3+ {[%emt 0:00:03]} 43. Kg2 {[%emt 0:03:36]} Nd4 {[%emt 0:00:07]} 44. Nxc5 {[%emt 0:02:50]} Nxe2 {[%emt 0:01:37]} 45. Rxe2 {[%emt 0:00:27]} Rxd8 {[%emt 0:01:08]} 46. Ne6 {[%emt 0:00:03]} Rc8 {[%emt 0:04:04]} 47. Ra2 {[%emt 0:00:41]} Ng7 {[%emt 0:02:07]} 48. Nxg7 {[%emt 0:03:20]} Kxg7 {[%emt 0:00:01]} 49. Ra7+ {[%emt 0:00:06]} Kg6 {[%emt 0:05:15]} 50. Rd7 {[%emt 0:00:19]} h5 {[%emt 0:00:01]} 51. gxh5+ {[%emt 0:00:36]} Kxh5 {[%emt 0:00:06]} 52. Rxd6 {[%emt 0:00:12]} Rf8 {[%emt 0:00:42]} 53. Re6 {[%emt 0:01:49]} f5 {[%emt 0:00:02]} 54. e5 {[%emt 0:00:30]} g4 {[%emt 0:00:18]} 55. hxg4+ {[%emt 0:00:27]} Kxg4 {[%emt 0:00:38]} 56. Rg6+ {[%emt 0:02:10]} Kh5 {[%emt 0:02:36]} 57. Rg7 {[%emt 0:00:21]} Kh6 {[%emt 0:00:13]} 58. Re7 {[%emt 0:00:26]} f4 {[%emt 0:00:16]} 59. Kf3 {[%emt 0:00:14]} Kg6 {[%emt 0:00:12]} 60. d6 {[%emt 0:00:25]} Kf5 {[%emt 0:00:04]} 61. d7 {[%emt 0:01:21]} Rd8 {[%emt 0:00:03]} 62. e6 {[%emt 0:01:01]} 1-0